bitfinex-derivatives/quotes_SOLF0:USTF0_20260117
["timestamp","ask_amount","ask_price","bid_price","bid_amount"]
[1768660065287,3.28321389,143.93,143.86,3.2011709]
[1768660065487,5.20126516,143.92,143.86,3.2011709]
[1768660065689,3.28321389,143.93,143.86,3.2011709]
[1768660065985,5.20126219,143.92,143.86,3.2011709]
[1768660066186,3.28321389,143.93,143.86,3.2011709]
[1768660066486,5.20123903,143.92,143.86,3.2011709]
[1768660066783,3.28321389,143.93,143.86,3.2011709]
[1768660066986,5.20126092,143.92,143.86,3.2011709]
[1768660067284,3.28321389,143.93,143.86,3.2011709]
[1768660067487,5.20071749,143.92,143.86,3.2011709]
[1768660067688,3.28321389,143.93,143.86,3.2011709]
[1768660067888,5.20071749,143.92,143.86,3.2011709]
[1768660068096,3.28321389,143.93,143.86,3.2011709]
[1768660068396,5.20071749,143.92,143.86,3.2011709]
[1768660068596,3.28321389,143.93,143.86,3.2011709]
[1768660068797,8.3945701,143.92,143.86,3.2011709]
[1768660068988,3.19367057,143.92,143.86,3.2011709]
[1768660070896,3.19367057,143.92,143.86,9.4591709]
[1768660078006,3.19367057,143.92,143.87,3.26240826]
[1768660087315,3.24869937,143.94,143.87,3.26240826]
[1768660087515,5.19096173,143.93,143.87,3.26240826]
[1768660087712,5.19096173,143.92,143.87,3.26240826]
[1768660087913,3.24869937,143.94,143.87,3.26240826]
[1768660088114,5.19086688,143.93,143.87,3.26240826]
[1768660088302,5.19086688,143.92,143.87,3.26240826]
[1768660088508,3.24869937,143.94,143.87,3.26240826]
[1768660088716,5.19097546,143.93,143.87,3.26240826]
[1768660088917,5.19097546,143.92,143.87,9.52010826]
[1768660089115,3.24869937,143.94,143.87,9.52010826]
[1768660089421,5.19101208,143.93,143.87,9.52010826]
[1768660089609,3.24869937,143.94,143.87,9.52010826]
[1768660089811,5.19134116,143.93,143.87,9.52010826]
[1768660090011,3.24869937,143.94,143.87,9.52010826]
[1768660090312,5.19134116,143.93,143.87,9.52010826]
[1768660090514,3.24869937,143.94,143.87,9.52010826]
[1768660090716,5.19136741,143.93,143.87,9.52010826]
[1768660090912,3.24869937,143.94,143.87,9.52010826]
[1768660091112,5.19102681,143.93,143.87,9.52010826]
[1768660091308,3.24869937,143.94,143.87,9.52010826]
[1768660091515,5.19105343,143.93,143.87,9.52010826]
[1768660091714,3.24869937,143.94,143.87,9.52010826]
[1768660091919,5.19105343,143.93,143.87,9.52010826]
[1768660092117,3.24869937,143.94,143.87,9.52010826]
[1768660092318,5.19105343,143.93,143.87,9.52010826]
[1768660092517,3.24869937,143.94,143.87,9.52010826]
[1768660092717,5.19110111,143.93,143.87,9.52010826]
[1768660093019,3.24869937,143.94,143.87,9.52010826]
[1768660093213,5.19202461,143.93,143.87,9.52010826]
[1768660093511,3.24869937,143.94,143.87,9.52010826]
[1768660093711,5.19206898,143.93,143.87,9.52010826]
[1768660094016,3.24869937,143.94,143.87,9.52010826]
[1768660094215,5.19271737,143.93,143.87,9.52010826]
[1768660094417,3.24869937,143.93,143.87,9.52010826]
[1768660097823,5.19292764,143.92,143.87,9.52010826]
[1768660098023,3.24869937,143.93,143.87,9.52010826]
[1768660098322,5.19258473,143.92,143.87,9.52010826]
[1768660098523,3.24869937,143.93,143.87,9.52010826]
[1768660107132,1.73189916,143.95,143.89,3.30738306]
[1768660107337,5.19212393,143.94,143.89,3.30738306]
[1768660107627,5.19212393,143.93,143.89,3.30738306]
[1768660107827,4.8766597,143.95,143.89,3.30738306]
[1768660108028,5.19212396,143.94,143.89,3.30738306]
[1768660108229,5.19212396,143.93,143.89,3.30738306]
[1768660108430,4.8766597,143.95,143.89,3.30738306]
[1768660108633,5.19153301,143.94,143.89,3.30738306]
[1768660108823,5.19153301,143.93,143.89,3.30738306]
[1768660109020,3.14476054,143.95,143.89,3.30738306]
[1768660109224,5.19155016,143.94,143.89,3.30738306]
[1768660109432,3.14476054,143.95,143.89,3.30738306]
[1768660109626,5.19138915,143.94,143.89,3.30738306]
[1768660109824,3.14476054,143.95,143.89,3.30738306]
[1768660110026,5.19139145,143.94,143.89,3.30738306]
[1768660110233,3.14476054,143.95,143.89,3.30738306]
[1768660110435,5.19119638,143.94,143.89,3.30738306]
[1768660110734,3.14476054,143.95,143.89,3.30738306]
[1768660110944,5.19119869,143.94,143.89,3.30738306]
[1768660111143,3.14476054,143.95,143.89,3.30738306]
[1768660111442,5.19101797,143.94,143.89,9.56418306]
[1768660111637,3.14476054,143.95,143.89,9.56418306]
[1768660111838,5.19102028,143.94,143.89,9.56418306]
[1768660112042,3.14476054,143.95,143.89,9.56418306]
[1768660112345,5.19101797,143.94,143.89,9.56418306]
[1768660112535,3.14476054,143.95,143.89,9.56418306]
[1768660112736,5.19088499,143.94,143.89,9.56418306]
[1768660112932,3.14476054,143.95,143.89,9.56418306]
[1768660113141,5.19088499,143.94,143.89,9.56418306]
[1768660113339,3.26165319,143.99,143.92,3.29583481]
[1768660113537,4.99297157,143.98,143.92,3.29583481]
[1768660113737,3.26165319,143.98,143.92,3.29583481]
[1768660114036,4.99297157,143.98,143.92,3.29583481]
[1768660114232,4.99297157,143.98,143.92,9.55113481]
[1768660120951,3.26165319,143.98,143.93,3.29583481]
[1768660124254,3.26165319,144.01,143.93,3.29583481]
[1768660124451,3.26165319,144.02,143.95,3.29583481]
[1768660125753,3.26165319,144.02,143.96,6.2538]
[1768660127653,3.26165319,144.02,143.96,9.54963481]
[1768660128861,3.26165319,144.02,143.97,9.54913481]
[1768660130159,3.26165319,144.05,143.98,3.29583481]
[1768660131763,3.26165319,144.05,143.99,6.2524]
[1768660135662,3.26165319,144.05,143.98,3.29583481]
[1768660135861,1.73131838,144.04,143.98,3.29583481]
[1768660136057,3.27078653,144.03,143.98,3.29583481]
[1768660138858,3.27078653,144.03,143.97,6.2531]
[1768660139557,3.27078653,144.03,143.96,2.9935845]
[1768660141365,1.73131838,144.02,143.96,2.9935845]
[1768660142067,3.27078653,144.01,143.96,2.9935845]
[1768660145869,3.27078653,144.01,143.94,6.2546]
[1768660145870,3.27078653,144.01,143.94,9.2481845]
[1768660146068,3.27078653,144.01,143.95,2.9935845]
[1768660151878,3.27078653,143.99,143.92,271.8489845]
[1768660152379,3.27078653,143.99,143.93,2.9935845]
[1768660155576,3.27078653,143.99,143.92,268.8554]
[1768660155577,3.27078653,143.99,143.92,262.6]
[1768660156082,3.27078653,143.99,143.91,2.9935845]
[1768660158681,3.27078653,143.99,143.94,2.9935845]
[1768660158885,3.27078653,144.01,143.94,2.9935845]
[1768660159185,3.27078653,144.03,143.95,1.73131838]
[1768660159384,3.27078653,144.03,143.96,2.9935845]
[1768660167188,3.11488914,144.05,143.97,1.73131838]
[1768660167378,3.11488914,144.05,143.98,3.18905434]
[1768660168086,4.84620752,144.05,143.98,3.18905434]
[1768660169388,3.11488914,144.04,143.98,3.18905434]
[1768660171293,4.84422865,144.04,143.98,3.18905434]
[1768660172187,3.11488914,144.03,143.98,3.18905434]
[1768660183799,3.11488914,144.03,143.96,3.02242122]
[1768660184100,1.72933951,144.02,143.96,3.02242122]
[1768660184295,4.83029842,144.02,143.96,3.02242122]
[1768660190503,3.10095891,144.01,143.96,3.02242122]
[1768660195402,2.99426502,144.03,143.96,3.02242122]
[1768660196906,9.24516502,144.03,143.96,3.02242122]
[1768660198207,1.72933951,144.02,143.96,3.02242122]
[1768660198507,4.72360453,144.02,143.96,3.02242122]
[1768660201402,2.99426502,143.99,143.93,3.14472912]
[1768660202811,2.99426502,144.01,143.94,3.14472912]
[1768660203007,1.72933951,144.02,143.94,3.14472912]
[1768660203507,5.16542412,144.01,143.94,3.14472912]
[1768660203710,4.72360453,144.02,143.94,3.14472912]
[1768660203908,5.20693844,144.01,143.95,3.14472912]
[1768660204108,10.97510453,144.02,143.95,3.14472912]
[1768660204309,5.20694143,144.01,143.95,3.14472912]
[1768660204516,10.97510453,144.02,143.95,3.14472912]
[1768660204810,5.20716197,144.01,143.95,3.14472912]
[1768660205003,4.72360453,144.0,143.93,3.14472912]
[1768660205204,2.99426502,143.99,143.93,3.14472912]
[1768660208209,6.2522,144.0,143.93,3.14472912]
[1768660212926,4.72360453,144.02,143.93,3.14472912]
[1768660212927,4.72360453,144.02,143.94,3.14472912]
[1768660213123,5.20542889,144.01,143.94,3.14472912]
[1768660213429,2.99426502,144.02,143.94,3.14472912]
[1768660213726,5.2058207,144.01,143.94,3.14472912]
[1768660213922,2.99426502,144.02,143.94,3.14472912]
[1768660214120,5.20581947,144.01,143.94,3.14472912]
[1768660214323,2.99426502,144.02,143.94,3.14472912]
[1768660214526,5.20627275,144.01,143.94,3.14472912]
[1768660214827,2.99426502,144.02,143.94,3.14472912]
[1768660215030,2.99426502,144.0,143.94,3.14472912]
[1768660218120,2.99426502,143.98,143.91,9.40042912]
[1768660219125,2.99426502,143.98,143.92,3.14472912]
[1768660219430,4.72360453,144.0,143.92,3.14472912]
[1768660219630,8.2003383,143.99,143.92,3.14472912]
[1768660219929,2.99426502,143.99,143.92,3.14472912]
[1768660226536,2.99426502,143.99,143.92,4.87406863]
[1768660226734,2.99426502,143.99,143.93,3.07805439]
[1768660227233,4.72360453,143.99,143.93,3.07805439]
[1768660229138,3.22062403,143.98,143.91,3.07805439]
[1768660229337,3.22062403,143.97,143.91,3.07805439]
[1768660232642,1.73089972,143.98,143.91,9.33395439]
[1768660232841,1.73089972,143.98,143.92,3.30641974]
[1768660233143,4.85590533,143.98,143.92,3.30641974]
[1768660235446,3.12500561,143.98,143.92,3.30641974]
[1768660235945,3.12500561,143.98,143.92,9.56181974]
[1768660238050,3.12500561,143.98,143.93,3.30641974]
[1768660238752,3.12500561,143.98,143.94,6.2547]
[1768660243553,3.12500561,144.0,143.93,3.30641974]
[1768660243760,3.12500561,144.0,143.96,6.2538]
[1768660245260,3.12500561,144.03,143.97,6.2534]
[1768660245557,8.32296853,144.02,143.97,6.2534]
[1768660245758,3.12500561,144.02,143.97,6.2534]
[1768660245956,3.12500561,144.02,143.95,9.56031974]
[1768660247861,3.12500561,144.02,143.96,6.2538]
[1768660249562,3.12500561,144.02,143.96,9.56021974]
[1768660249761,3.12500561,144.02,143.97,3.30641974]
[1768660255367,3.12500561,144.02,143.97,9.55981974]
[1768660261874,3.12500561,144.02,143.97,3.30641974]
[1768660262367,4.79208613,144.04,143.97,3.30641974]
[1768660262572,3.06118641,144.04,143.98,9.33158327]
[1768660271079,3.06118641,144.04,143.96,9.33218327]
[1768660271280,3.06118641,144.03,143.96,9.33218327]
[1768660275586,3.06118641,144.03,143.97,3.07868327]
[1768660277885,3.06118641,144.03,143.97,9.33198327]
[1768660290091,3.06118641,144.03,143.97,3.07868327]
[1768660291299,4.79080275,144.03,143.97,3.07868327]
[1768660293999,11.04170275,144.03,143.97,3.07868327]
[1768660294792,9.31208641,144.03,143.97,3.07868327]
[1768660304008,3.23635883,144.02,143.97,3.07868327]
[1768660317219,9.42465848,144.04,143.97,3.07868327]
[1768660317413,5.17866161,144.03,143.97,3.07868327]
[1768660317618,3.17415848,144.04,143.98,3.15406994]
[1768660317819,5.17865282,144.03,143.98,3.15406994]
[1768660318019,3.17415848,144.04,143.98,3.15406994]
[1768660318214,5.17845338,144.03,143.98,3.15406994]
[1768660318520,3.17415848,144.04,143.98,3.15406994]
[1768660318719,5.17845338,144.03,143.98,3.15406994]
[1768660319019,3.17415848,144.04,143.98,3.15406994]
[1768660319219,5.17831226,144.03,143.98,3.15406994]
[1768660319420,3.17415848,144.04,143.98,3.15406994]
[1768660319620,5.17831226,144.03,143.98,3.15406994]
[1768660319820,3.17415848,144.04,143.98,3.15406994]
[1768660320020,5.17831226,144.03,143.98,3.15406994]
[1768660320321,3.17415848,144.04,143.98,3.15406994]
[1768660320521,5.17829607,144.03,143.98,3.15406994]
[1768660320717,3.17415848,144.04,143.98,3.15406994]
[1768660321019,5.17829607,144.03,143.98,3.15406994]
[1768660321220,3.17415848,144.04,143.98,3.15406994]
[1768660321416,5.17831364,144.03,143.99,3.15406994]
[1768660321614,3.17415848,144.06,143.99,3.15406994]
[1768660321819,3.17415848,144.06,144.0,4.88368628]
[1768660323321,3.17415848,144.06,144.01,3.15406994]
[1768660326229,3.17415848,144.08,144.01,3.15406994]
[1768660332930,3.17415848,144.08,144.01,9.40566994]
[1768660334631,3.17415848,144.08,144.02,3.15406994]
[1768660340333,3.17415848,144.06,144.0,3.15406994]
[1768660340927,3.17415848,144.04,143.98,3.15406994]
[1768660341833,3.17415848,144.04,143.98,9.40676994]
[1768660346338,3.17415848,144.04,143.99,6.2525]
[1768660346539,3.17415848,144.04,143.99,9.39845335]
[1768660346937,1.72961634,144.05,144.0,3.14595335]
[1768660347239,4.94623593,144.06,144.01,3.14595335]
[1768660348640,3.21661959,144.06,144.01,3.14595335]
[1768660348841,3.21661959,144.06,144.01,9.39745335]
[1768660349438,1.72961634,144.07,144.02,9.39715335]
[1768660351644,4.94623593,144.08,144.02,9.39715335]
[1768660353348,4.94498253,144.08,144.02,9.39715335]
[1768660353950,4.94498253,144.08,144.02,3.14595335]
[1768660359648,4.94498253,144.08,144.02,9.39715335]
[1768660365163,4.94498253,144.08,144.0,1.72836294]
[1768660365164,3.21661959,144.08,144.03,9.55530807]
[1768660368657,3.07545955,144.11,144.05,3.30460807]
[1768660369562,4.80382249,144.11,144.05,3.30460807]
[1768660369765,4.80382249,144.11,144.05,9.55450807]
[1768660371962,4.80382249,144.11,144.06,3.2188902]
[1768660372865,3.07545955,144.11,144.06,3.2188902]
[1768660373761,3.1541106,144.14,144.07,3.2188902]
[1768660374564,3.1541106,144.14,144.08,3.2188902]
[1768660374966,3.1541106,144.14,144.08,9.4673902]
[1768660380861,3.1541106,144.16,144.1,3.2188902]
[1768660381869,3.1541106,144.16,144.1,9.4665902]
[1768660382266,3.1541106,144.14,144.08,3.2188902]
[1768660383865,3.1541106,144.14,144.08,9.4671902]
[1768660384270,3.1541106,144.14,144.08,3.2188902]
[1768660385777,3.1541106,144.14,144.09,6.2481]
[1768660388777,1.72836294,144.15,144.1,3.2188902]
[1768660388974,4.88247354,144.17,144.1,3.2188902]
[1768660389175,3.1541106,144.16,144.1,3.2188902]
[1768660389376,1.72836294,144.18,144.11,3.2188902]
[1768660389680,3.1541106,144.17,144.11,3.2188902]
[1768660390481,3.1541106,144.19,144.12,3.2188902]
[1768660390881,3.1541106,144.18,144.11,6.2471]
[1768660395481,3.1541106,144.18,144.1,3.2188902]
[1768660395682,3.1541106,144.16,144.1,3.2188902]
[1768660396483,3.1541106,144.18,144.11,3.2188902]
[1768660397082,3.1541106,144.18,144.12,3.2188902]
[1768660400189,11.12607354,144.2,144.12,3.2188902]
[1768660400389,3.1541106,144.2,144.14,3.2188902]
[1768660401392,11.12537354,144.22,144.14,3.2188902]
[1768660401783,3.29709318,144.21,144.14,3.2188902]
[1768660402083,3.29709318,144.2,144.14,3.2188902]
[1768660404498,3.29709318,144.22,144.14,3.2188902]
[1768660404899,3.29709318,144.22,144.16,3.20754418]
[1768660407099,3.29709318,144.22,144.16,9.45254418]
[1768660408302,3.29709318,144.22,144.16,3.20754418]
[1768660410712,3.29709318,144.24,144.17,3.20754418]
[1768660411707,3.29709318,144.24,144.19,3.20754418]
[1768660412208,3.29709318,144.26,144.19,3.20754418]
[1768660413806,3.29709318,144.26,144.19,9.45124418]
[1768660416717,5.02109038,144.26,144.19,9.45124418]
[1768660418521,5.02109038,144.26,144.19,3.20754418]
[1768660418823,3.13101552,144.25,144.19,3.20754418]
[1768660419015,3.13101552,144.25,144.18,6.2442]
[1768660419224,4.85501272,144.24,144.17,3.16490524]
[1768660419521,3.13101552,144.23,144.17,3.16490524]
[1768660420411,4.85501272,144.22,144.15,3.16490524]
[1768660421017,1.7239972,144.2,144.15,9.41040524]
[1768660424822,4.85501272,144.21,144.15,9.41040524]
[1768660427929,4.85501272,144.21,144.15,3.16490524]
[1768660430924,3.13101552,144.2,144.15,3.16490524]
[1768660431528,1.7239972,144.19,144.15,3.16490524]
[1768660434127,3.13101552,144.2,144.15,3.16490524]
[1768660435131,3.13101552,144.2,144.13,6.2464]
[1768660435324,3.13101552,144.2,144.13,9.24954591]
[1768660436733,3.13101552,144.2,144.14,3.00314591]
[1768660439134,3.13101552,144.2,144.14,9.24914591]
[1768660444231,3.13101552,144.2,144.14,3.00314591]
[1768660444439,3.30947745,144.18,144.12,265.22314591]
[1768660444643,1.7239972,144.17,144.12,265.22314591]
[1768660451743,5.03347465,144.17,144.1,3.00314591]
[1768660452043,3.30947745,144.14,144.05,1.7239972]
[1768660452341,1.7239972,144.13,144.06,262.28]
[1768660452745,5.03347465,144.13,144.06,262.28]
[1768660453746,6.247,144.12,144.06,262.28]
[1768660454142,6.247,144.12,144.07,0.87500944]
[1768660464866,9.55107655,144.12,144.06,262.28]
[1768660466067,9.55107655,144.12,144.06,263.15669984]
[1768660479271,9.29815037,144.11,144.02,6.2511]
[1768660479474,9.29815037,144.11,144.03,264.1072111]
[1768660480877,9.29815037,144.11,144.03,270.3579111]
[1768660481680,6.2479,144.1,144.03,264.1072111]
[1768660482879,3.05065037,144.11,144.03,264.1072111]
[1768660484783,9.29805037,144.11,144.03,264.1072111]
[1768660485283,3.05065037,144.1,144.03,262.38]
[1768660485481,4.77786147,144.1,144.03,262.38]
[1768660486789,3.05065037,144.12,144.04,6.2501]
[1768660487080,6.2468,144.13,144.06,1.7272111]
[1768660487274,9.29745037,144.13,144.05,1.7272111]
[1768660487476,3.05065037,144.12,144.05,1.7272111]
[1768660487782,3.05065037,144.12,144.05,7.9770111]
[1768660488885,3.05065037,144.12,144.05,1.7272111]
[1768660491089,9.29765037,144.12,144.05,1.7272111]
[1768660491785,9.50950482,144.14,144.03,262.38]
[1768660491993,9.50950482,144.14,144.07,1.7272111]
[1768660493488,9.50860482,144.16,144.06,6.2491]
[1768660493685,3.26310482,144.16,144.09,1.7272111]
[1768660494988,6.2458,144.15,144.09,1.7272111]
[1768660496991,3.26310482,144.16,144.09,1.7272111]
[1768660497494,3.26310482,144.16,144.08,1.7272111]
[1768660498694,4.99031592,144.16,144.06,7.9763111]
[1768660498893,0.04377705,144.13,144.07,6.249]
[1768660506501,3.30688187,144.13,144.07,6.249]
[1768660509504,3.30688187,144.13,144.08,6.2486]
[1768660511908,3.30688187,144.13,144.06,6.2494]
[1768660512606,0.04377705,144.13,144.07,6.249]
[1768660514508,0.04377705,144.13,144.08,6.2486]
[1768660518815,0.04377705,144.13,144.08,7.9758111]
[1768660519016,0.04377705,144.13,144.09,6.248]
[1768660523823,3.26310482,144.16,144.1,6.2475]
[1768660525622,3.26310482,144.16,144.12,0.04387757]
[1768660542934,3.26310482,144.16,144.12,6.29067757]
[1768660547939,3.26310482,144.16,144.13,6.2464]
[1768660563553,3.12942718,144.18,144.13,6.2464]
[1768660566352,3.12942718,144.18,144.14,6.246]
[1768660581567,3.12942718,144.21,144.14,6.246]
[1768660581765,5.16135153,144.2,144.14,6.246]
[1768660581966,3.12942718,144.21,144.14,6.246]
[1768660582162,5.1613074,144.2,144.14,6.246]
[1768660582367,3.12942718,144.21,144.14,6.246]
[1768660582569,5.16020139,144.2,144.14,6.246]
[1768660582764,3.12942718,144.21,144.14,6.246]
[1768660582964,5.16020139,144.2,144.14,6.246]
[1768660583164,3.12942718,144.21,144.14,6.246]
[1768660583369,8.34041771,144.2,144.14,6.246]
[1768660583664,3.18110169,144.2,144.14,6.246]
[1768660583869,3.18110169,144.2,144.12,7.9732208]
[1768660584566,3.18110169,144.2,144.15,0.04401214]
[1768660586472,3.18110169,144.18,144.15,0.04401214]
[1768660586966,3.18110169,144.17,144.1,6.2475]
[1768660587566,3.18110169,144.17,144.08,7.9748208]
[1768660588166,3.18110169,144.17,144.09,6.2481]
[1768660592572,3.18110169,144.17,144.08,1.7263208]
[1768660592573,3.18110169,144.17,144.1,6.2477]
[1768660614607,0.04398905,144.15,144.1,6.2477]
[1768660622607,0.04398905,144.15,144.08,6.2483]
[1768660622803,3.15874803,144.15,144.08,6.2483]
[1768660625003,3.15874803,144.15,144.07,1.72611649]
[1768660625208,3.15874803,144.15,144.09,6.2481]
[1768660627316,4.84087547,144.14,144.05,496.27531472]
[1768660628014,11.08707547,144.14,144.06,6.2494]
[1768660628714,9.36095898,144.14,144.06,6.2494]
[1768660628916,11.08707547,144.14,144.06,6.2494]
[1768660631313,0.04386662,144.11,144.06,6.2494]
[1768660632612,9.35965898,144.17,144.06,98.93861649]
[1768660632916,3.11475898,144.17,144.08,1.72611649]
[1768660633216,3.11475898,144.17,144.1,6.2477]
[1768660639919,3.11475898,144.17,144.08,7.97451649]
[1768660641919,9.35965898,144.17,144.08,7.97451649]
[1768660645525,3.30899092,144.16,144.08,7.97451649]
[1768660646827,5.03510741,144.18,144.1,1.72611649]
[1768660647423,3.30899092,144.17,144.1,1.72611649]
[1768660648425,3.30899092,144.19,144.12,1.72611649]
[1768660648834,3.30899092,144.19,144.12,7.97291649]
[1768660649731,3.30899092,144.19,144.13,6.2464]
[1768660654036,3.30899092,144.19,144.14,6.246]
[1768660655534,4.75383362,144.21,144.14,6.246]
[1768660657337,4.75299522,144.21,144.14,6.246]
[1768660658135,3.02771713,144.2,144.14,6.246]
[1768660658731,1.72527809,144.19,144.14,6.246]
[1768660658931,4.75299522,144.19,144.14,6.246]
[1768660664238,3.02771713,144.19,144.14,6.246]
[1768660664440,4.75299522,144.19,144.14,6.246]
[1768660664736,3.02771713,144.19,144.14,6.246]
[1768660664938,4.75299522,144.19,144.14,6.246]
[1768660665841,1.72527809,144.2,144.14,6.246]
[1768660666038,3.02771713,144.21,144.15,6.2455]
[1768660671746,3.02771713,144.21,144.16,6.2451]
[1768660676048,3.02771713,144.21,144.13,7.97137809]
[1768660677037,3.02771713,144.21,144.14,6.246]
[1768660680352,3.02771713,144.21,144.12,6.2466]
[1768660680544,3.02771713,144.21,144.12,1.72527809]
[1768660681651,3.02771713,144.21,144.13,6.2464]
[1768660689051,3.02771713,144.21,144.14,6.246]
[1768660689355,4.80523225,144.2,144.09,97.1906]
[1768660689655,3.07995416,144.19,144.09,361.15587809]
[1768660690457,3.07995416,144.19,144.13,0.04378011]
[1768660693459,9.32395416,144.19,144.13,0.04378011]
[1768660693661,3.07995416,144.18,144.13,0.04378011]
[1768660696368,6.244,144.19,144.13,0.04378011]
[1768660696870,9.32395416,144.19,144.13,0.04378011]
[1768660700470,3.07995416,144.19,144.13,0.04378011]
[1768660704975,3.07995416,144.19,144.13,6.29018011]
[1768660706268,2.99093091,144.21,144.13,8.0154582]
[1768660706467,5.17283917,144.2,144.13,8.0154582]
[1768660706667,2.99093091,144.21,144.13,8.0154582]
[1768660706868,5.17277081,144.2,144.13,7.97167809]
[1768660707069,2.99093091,144.21,144.13,7.97167809]
[1768660707270,5.17277081,144.2,144.13,7.97167809]
[1768660707465,2.99093091,144.21,144.13,7.97167809]
[1768660708174,2.99093091,144.21,144.14,6.246]
[1768660711076,2.99093091,144.21,144.15,7.97067809]
[1768660713673,2.99093091,144.21,144.15,6.2454]
[1768660713872,2.99093091,144.21,144.13,1.72527809]
[1768660713873,2.99093091,144.21,144.16,6.245]
[1768660721387,2.99093091,144.21,144.13,98.889818]
[1768660721388,1.724818,144.24,144.17,6.2446]
[1768660721688,3.03647348,144.23,144.17,6.2446]
[1768660723892,3.03647348,144.23,144.18,6.2442]
[1768660724996,6.2399,144.29,144.19,6.2437]
[1768660725189,1.724818,144.25,144.19,6.2437]
[1768660726886,359.3086,144.31,144.19,6.2437]
[1768660726887,1.724818,144.23,144.19,6.2437]
[1768660727188,4.76129148,144.23,144.19,6.2437]
[1768660727993,3.03647348,144.22,144.19,6.2437]
[1768660728588,3.03647348,144.22,144.17,6.2446]
[1768660730496,4.76129148,144.22,144.17,6.2446]
[1768660731399,3.03647348,144.22,144.17,6.2446]
[1768660731589,3.03647348,144.22,144.18,6.2442]
[1768660733900,3.03647348,144.22,144.17,2.99594108]
[1768660735604,3.03647348,144.22,144.17,9.24064108]
[1768660739402,3.03647348,144.22,144.17,2.99594108]
[1768660741796,3.03647348,144.22,144.15,6.2455]
[1768660742001,3.03647348,144.22,144.15,9.24144108]
[1768660742805,3.03647348,144.22,144.16,2.99594108]
[1768660744409,3.03647348,144.22,144.16,9.24104108]
[1768660744807,3.03647348,144.22,144.17,2.99594108]
[1768660745510,9.53681897,144.24,144.17,2.99594108]
[1768660746916,3.29491897,144.24,144.17,2.99594108]
[1768660748914,3.29491897,144.24,144.17,9.24054108]
[1768660749111,3.29491897,144.24,144.17,2.99594108]
[1768660750510,3.29491897,144.24,144.18,6.2442]
[1768660750812,1.724818,144.26,144.18,2.99594108]
[1768660751014,3.29491897,144.32,144.24,2.99594108]
[1768660751218,3.29491897,144.31,144.24,2.99594108]
[1768660751422,1.55199176,144.32,144.25,1.7338726]
[1768660751610,1.55199176,144.32,144.26,1.7338726]
[1768660751915,1.55199176,144.32,144.23,9.24873776]
[1768660753528,3.29491897,144.31,144.23,9.24873776]
[1768660754422,3.29491897,144.31,144.23,3.00673776]
[1768660756223,1.724818,144.3,144.23,3.00673776]
[1768660756428,3.29491897,144.29,144.23,3.00673776]
[1768660761526,7.963718,144.31,144.23,3.00673776]
[1768660762726,6.2389,144.31,144.23,3.00673776]
[1768660763029,7.963718,144.31,144.23,3.00673776]
[1768660763230,6.2393,144.3,144.23,3.00673776]
[1768660763729,8.17167944,144.3,144.24,1.73391075]
[1768660763925,8.17167944,144.3,144.25,1.73391075]
[1768660764126,8.17167944,144.3,144.26,1.075e-05]
[1768660764336,8.17167944,144.3,144.23,3.00673776]
[1768660766434,1.93237944,144.29,144.23,3.00673776]
[1768660776028,1.93237944,144.29,144.24,1.73391083]
[1768660776232,1.93237944,144.29,144.25,1.73391083]
[1768660776430,1.93237944,144.29,144.26,1.083e-05]
[1768660776631,1.93237944,144.29,144.23,3.00673776]
[1768660776935,1.93560667,144.28,144.21,3.29768795]
[1768660777335,8.17570667,144.28,144.21,3.29768795]
[1768660777827,1.93560667,144.28,144.21,3.29768795]
[1768660778138,1.93560667,144.28,144.22,3.29768795]
[1768660784333,8.17570667,144.28,144.22,3.29768795]
[1768660787033,6.2405,144.27,144.22,3.29768795]
[1768660791035,6.2409,144.26,144.22,3.29768795]
[1768660794037,1.72349216,144.27,144.22,3.29768795]
[1768660795142,9.89929883,144.28,144.22,3.29768795]
[1768660797242,1.93283531,144.27,144.22,3.29768795]
[1768660798248,1.93283531,144.27,144.2,9.51413594]
[1768660799946,1.93283531,144.25,144.2,9.51413594]
[1768660800348,1.93283531,144.25,144.2,3.27073594]
[1768660802451,1.93283531,144.28,144.2,3.27073594]
[1768660802756,5.16545803,144.27,144.21,3.27073594]
[1768660803053,1.93283531,144.28,144.21,3.27073594]
[1768660803352,5.16544809,144.27,144.21,3.27073594]
[1768660803651,1.93283531,144.28,144.21,3.27073594]
[1768660803848,5.16519406,144.27,144.21,3.27073594]
[1768660804054,8.17303531,144.28,144.21,3.27073594]
[1768660804256,5.17127244,144.27,144.21,3.27073594]
[1768660804442,8.17303531,144.28,144.21,3.27073594]
[1768660804643,5.1710529,144.27,144.21,3.27073594]
[1768660804847,8.17303531,144.28,144.21,3.27073594]
[1768660805054,5.1710529,144.27,144.21,3.27073594]
[1768660805256,8.17303531,144.28,144.21,3.27073594]
[1768660805449,5.17086176,144.27,144.21,3.27073594]
[1768660805753,8.17303531,144.28,144.21,3.27073594]
[1768660805954,5.17086176,144.27,144.21,3.27073594]
[1768660806152,8.17303531,144.28,144.21,3.27073594]